bitfinex/quotes_BTCUSD_20241123
["timestamp","ask_amount","ask_price","bid_price","bid_amount"]
[1732323604898,0.00401474,98239.0,98216.0,0.00101803]
[1732323605146,0.00401474,98240.0,98217.0,0.00101803]
[1732323605363,0.00401474,98239.0,98216.0,0.00101803]
[1732323605574,0.1,98251.0,98216.0,0.00101803]
[1732323605827,0.08088675,98253.0,98216.0,0.00101803]
[1732323606272,0.08088675,98253.0,97787.0,0.00182678]
[1732323606540,0.08088675,98253.0,98193.0,0.05097926]
[1732323606541,0.031917,98239.0,98193.0,0.05097926]
[1732323606765,0.00101803,98238.0,98196.0,0.023]
[1732323607023,0.00101803,98238.0,98197.0,0.00101802]
[1732323608227,0.03293503,98239.0,98202.0,0.05055717]
[1732323608474,0.00101803,98238.0,98204.0,0.05052961]
[1732323608707,0.00101803,98238.0,98207.0,0.023]
[1732323608944,0.00101803,98238.0,98208.0,0.00101802]
[1732323609460,0.00101803,98238.0,98210.0,0.023]
[1732323609696,0.00101803,98238.0,98211.0,0.00101802]
[1732323610399,0.031917,98240.0,98211.0,0.00101802]
[1732323610631,0.031917,98240.0,98216.0,0.0008607]
[1732323610870,0.031917,98240.0,98217.0,0.00101802]
[1732323611552,0.00101803,98239.0,98217.0,0.00101802]
[1732323613398,0.0813,98238.0,98217.0,0.00101802]
[1732323613613,0.0813,98238.0,98216.0,0.0008607]
[1732323613614,0.00101803,98237.0,98216.0,0.0008607]
[1732323614683,0.031917,98236.0,98216.0,0.0008607]
[1732323614911,0.03293503,98235.0,98216.0,0.0008607]
[1732323616301,0.03293503,98235.0,98217.0,0.00028448]
[1732323616525,0.00101803,98235.0,98217.0,0.00028448]
[1732323616763,0.03293503,98235.0,98217.0,0.00028448]
[1732323617235,0.0129494,98235.0,98217.0,0.00028448]
[1732323617688,0.0129494,98236.0,98217.0,0.00028448]
[1732323617913,0.0129494,98235.0,98216.0,0.0008607]
[1732323619421,0.0813,98238.0,98216.0,0.0008607]
[1732323619422,0.1129494,98230.0,98225.0,0.50647959]
[1732323619912,0.0129494,98229.0,98225.0,0.50647959]
[1732323620641,0.0129494,98228.0,98225.0,0.50647959]
[1732323622055,0.0129494,98228.0,98225.0,0.50734029]
[1732323622800,0.00878575,98228.0,98225.0,0.50734029]
[1732323623042,0.00183739,98228.0,98225.0,0.50734029]
[1732323623278,0.09868718,98230.0,98225.0,0.50734029]
[1732323627235,0.03489127,98230.0,98225.0,0.50734029]
[1732323628139,0.03489127,98230.0,98225.0,0.54820981]
[1732323628656,0.03489127,98230.0,98225.0,0.00923287]
[1732323629156,0.03489127,98230.0,98216.0,0.0008607]
[1732323629400,0.03489127,98230.0,98216.0,0.0423505]
[1732323629647,0.03489127,98230.0,98216.0,0.0008607]
[1732323629889,0.03489127,98230.0,98217.0,0.01886233]
[1732323635104,0.03489127,98228.0,98217.0,0.01886233]
[1732323638535,0.04729884,98229.0,98217.0,0.01886233]
[1732323643770,0.04729884,98229.0,98217.0,0.05904265]
[1732323644243,0.04729884,98229.0,98217.0,0.01886233]
[1732323645339,0.04729884,98229.0,98217.0,0.0595858]
[1732323645604,0.0751,98229.0,98217.0,0.0595858]
[1732323646482,0.0751,98229.0,98217.0,0.0604462]
[1732323647179,0.0487208,98230.0,98217.0,0.0604462]
[1732323647180,0.0017208,98230.0,98218.0,0.15]
[1732323647638,0.0017208,98230.0,98217.0,0.1079462]
[1732323647639,0.0017208,98230.0,98217.0,0.08908387]
[1732323649973,0.0017208,98230.0,98218.0,0.02145206]
[1732323651382,0.0017208,98230.0,98219.0,0.127]
[1732323651851,0.0007884,98230.0,98219.0,0.127]
[1732323652103,0.0068139,98248.0,98220.0,0.15]
[1732323655389,0.0068139,98248.0,98220.0,0.00107574]
[1732323655633,0.0068139,98248.0,98221.0,0.00107574]
[1732323658162,0.0068139,98248.0,98217.0,0.0008604]
[1732323658163,0.08450565,98228.0,98177.0,0.023]
[1732323658393,0.08450565,98228.0,98217.0,0.0008604]
[1732323658630,0.08450565,98229.0,98218.0,0.0753]
[1732323659106,0.08450565,98230.0,98218.0,0.0753]
[1732323659333,0.08450565,98234.0,98218.0,0.0753]
[1732323659552,0.08450565,98235.0,98218.0,0.0753]
[1732323660717,0.08450565,98240.0,98218.0,0.0753]
[1732323660953,0.0017208,98248.0,98218.0,0.0753]
[1732323661175,0.0017208,98248.0,98239.0,0.15]
[1732323661672,0.0053451,98248.0,98239.0,0.15]
[1732323662134,0.08450565,98245.0,98239.0,0.15]
[1732323662383,0.08450565,98244.0,98239.0,0.15]
[1732323662609,0.08450565,98245.0,98239.0,0.15]
[1732323662857,0.0036243,98247.0,98239.0,0.15]
[1732323662858,0.1,98246.0,98239.0,0.15]
[1732323663090,0.08450565,98240.0,98239.0,0.15]
[1732323663351,0.08450565,98245.0,98239.0,0.15]
[1732323663584,0.0006592,98240.0,98239.0,0.15]
[1732323664268,0.08490989,98240.0,98239.0,0.15]
[1732323666904,0.00040424,98240.0,98239.0,0.15]
[1732323667088,0.08490989,98240.0,98239.0,0.15]
[1732323667345,0.00040424,98240.0,98239.0,0.15]
[1732323667560,0.08490989,98240.0,98239.0,0.15]
[1732323668010,0.08490989,98240.0,98239.0,0.19106919]
[1732323671125,0.00040424,98240.0,98239.0,0.19106919]
[1732323671998,0.00040424,98240.0,98239.0,0.19575619]
[1732323672215,0.08490989,98240.0,98239.0,0.19575619]
[1732323672970,0.00040424,98240.0,98238.0,0.04881251]
[1732323673440,0.00040424,98240.0,98238.0,0.00496]
[1732323674142,0.00040424,98240.0,98238.0,0.04700005]
[1732323676411,0.00076584,98248.0,98239.0,0.00798212]
[1732323677352,0.00669604,98248.0,98173.0,0.023]
[1732323677591,0.1,98246.0,98173.0,0.023]
[1732323678471,0.1801,98247.0,98173.0,0.023]
[1732323678717,0.1817885,98247.0,98174.0,0.05080604]
[1732323678940,0.0817885,98247.0,98174.0,0.05080604]
[1732323679139,0.1817885,98247.0,98174.0,0.05080604]
[1732323679424,0.1817885,98247.0,98175.0,0.023]
[1732323679629,0.0817885,98247.0,98175.0,0.023]
[1732323680067,0.0817885,98247.0,98176.0,0.05037192]
[1732323680326,0.0016885,98247.0,98178.0,0.1288]
[1732323680564,0.0016885,98247.0,98177.0,0.00101795]
[1732323680780,0.0016885,98247.0,98180.0,0.1288]
[1732323681017,0.0016885,98247.0,98181.0,0.00101795]
[1732323681230,0.0016885,98247.0,98183.0,0.023]
[1732323681492,0.0016885,98247.0,98185.0,0.1288]
[1732323681709,0.0016885,98247.0,98186.0,0.00101795]
[1732323681957,0.0016885,98247.0,98187.0,0.0798]
[1732323682165,0.0016885,98247.0,98189.0,0.0798]
[1732323682385,0.1,98242.0,98191.0,0.1288]
[1732323682600,0.1,98242.0,98190.0,0.023]
[1732323682601,0.1,98242.0,98196.0,0.1288]
[1732323682811,0.1016885,98242.0,98197.0,0.023]
[1732323683053,0.1016885,98242.0,98203.0,0.049]
[1732323683256,0.1016885,98242.0,98205.0,0.1288]
[1732323683471,0.1016885,98242.0,98208.0,0.049]
[1732323683689,0.1016885,98242.0,98210.0,0.049]
[1732323683914,0.1016885,98242.0,98211.0,0.00101795]
[1732323684608,0.0016885,98242.0,98211.0,0.00101795]
[1732323684853,0.0016885,98242.0,98213.0,0.049]
[1732323685090,0.0016885,98242.0,98214.0,0.08081795]
[1732323685315,0.0016885,98242.0,98215.0,0.049]
[1732323685562,0.0016885,98242.0,98216.0,0.00101795]
[1732323686937,0.0016885,98242.0,98217.0,0.05001795]
[1732323687654,0.07843075,98246.0,98217.0,0.049]
[1732323688080,0.07843075,98246.0,98218.0,0.00101795]
[1732323688527,0.0801,98245.0,98218.0,0.00101795]
[1732323690527,0.0801,98245.0,98219.0,0.03312986]
[1732323690782,0.0801,98245.0,98220.0,0.00101795]
[1732323690994,0.0801,98245.0,98222.0,0.023]
[1732323691223,0.0801,98245.0,98223.0,0.00101795]
[1732323692357,0.0017218,98247.0,98224.0,0.1288]
[1732323692572,0.0017218,98247.0,98226.0,0.049]
[1732323692784,0.0017218,98247.0,98227.0,0.02401789]
[1732323693715,0.0017218,98247.0,98229.0,0.023]
[1732323693930,0.0771,98258.0,98231.0,0.023]
[1732323694156,0.0017218,98246.0,98233.0,0.023]
[1732323694379,0.0017218,98246.0,98235.0,0.023]
[1732323694616,0.0565218,98258.0,98236.0,0.0010178]
[1732323694847,0.0565218,98258.0,98231.0,0.15]
[1732323694848,0.0565218,98258.0,98237.0,0.0500178]
[1732323695068,0.0451,98265.0,98237.0,0.0500178]
[1732323695069,0.06878009,98263.0,98238.0,0.0796]
[1732323695276,0.0451,98265.0,98239.0,0.0010178]
[1732323695485,0.0483,98271.0,98240.0,0.0465]
[1732323695737,0.0483,98271.0,98241.0,0.00101772]
[1732323695959,0.0483,98271.0,98242.0,0.07051772]
[1732323696211,0.0483,98271.0,98243.0,0.0465]
[1732323696447,0.0550224,98280.0,98246.0,0.023]
[1732323696676,0.0550224,98280.0,98248.0,0.023]
[1732323696889,0.0550224,98280.0,98249.0,0.00101762]
[1732323697117,0.059477,98282.0,98251.0,0.023]
[1732323697328,0.050477,98285.0,98254.0,0.0465]
[1732323697562,0.0801,98282.0,98255.0,0.0240176]
[1732323697784,0.050477,98281.0,98255.0,0.0240176]
[1732323698005,0.03293588,98280.0,98255.0,0.0240176]
[1732323701149,0.03293588,98279.0,98255.0,0.06585793]
[1732323701402,0.03293588,98279.0,98255.0,0.21585793]
[1732323701623,0.03293588,98279.0,98255.0,0.1740176]
[1732323702976,0.03293588,98279.0,98269.0,0.50640612]
[1732323705986,0.03465628,98279.0,98269.0,0.50640612]
[1732323706235,0.03465628,98279.0,98270.0,0.15]
[1732323708094,0.050477,98273.0,98270.0,0.15]
[1732323708327,0.050477,98273.0,98271.0,0.01816426]
[1732323708769,0.0801,98277.0,98271.0,0.01816426]
[1732323709252,0.050477,98273.0,98271.0,0.01816426]
[1732323717969,0.11303588,98277.0,98270.0,0.15]
[1732323718427,0.050477,98276.0,98270.0,0.1508599]
[1732323719796,0.050477,98276.0,98269.0,0.03951905]
[1732323720013,0.050477,98276.0,98271.0,0.02207459]
[1732323721591,0.21241288,98272.0,98271.0,0.02207459]
[1732323721805,0.050477,98255.0,98254.0,0.04176068]
[1732323722029,0.03114196,98255.0,98238.0,0.0467]
[1732323723146,0.11404196,98260.0,98238.0,0.0467]
[1732323723403,0.0829,98260.0,98239.0,0.00101787]
[1732323723621,0.03293588,98265.0,98240.0,0.0467]
[1732323723837,0.03293588,98265.0,98241.0,0.00101778]
[1732323724051,0.03114196,98262.0,98242.0,0.00101778]
[1732323724283,0.03114196,98262.0,98241.0,0.00101778]
[1732323725379,0.03114196,98262.0,98242.0,0.03312986]
[1732323725592,0.03114196,98262.0,98242.0,0.03414764]
[1732323725805,0.11583588,98266.0,98242.0,0.03414764]
[1732323726020,0.03114196,98262.0,98242.0,0.03414764]
[1732323731386,0.03114196,98262.0,98242.0,0.03500774]
[1732323735201,0.01835975,98262.0,98236.0,0.01775052]
[1732323735464,0.01835975,98262.0,98237.0,0.02401779]
[1732323735899,0.01835975,98262.0,98237.0,0.00167851]
[1732323736118,0.01835975,98262.0,98238.0,0.00066072]
[1732323736566,0.01486447,98262.0,98238.0,0.00066072]
[1732323736815,0.01486447,98262.0,98239.0,0.00101779]
[1732323737039,0.0772,98261.0,98239.0,0.00101779]
[1732323737322,0.0499,98260.0,98239.0,0.00101779]
[1732323737764,0.04248169,98260.0,98238.0,0.00066072]
[1732323742671,0.07541757,98260.0,98238.0,0.00066072]
[1732323743117,0.04248169,98260.0,98238.0,0.00066072]
[1732323743339,0.07541757,98260.0,98238.0,0.00066072]
[1732323744001,0.11013588,98261.0,98239.0,0.00101779]
[1732323744237,0.03293588,98260.0,98240.0,0.0459]
[1732323744447,0.03293588,98260.0,98241.0,0.00101779]
[1732323744894,0.03293588,98260.0,98241.0,0.01360655]
[1732323745122,0.11013588,98261.0,98241.0,0.01360655]
[1732323745375,0.11013588,98261.0,98242.0,0.06645562]
[1732323745595,0.0772,98261.0,98242.0,0.06645562]
[1732323745829,0.11013588,98261.0,98242.0,0.06645562]
[1732323747296,0.11013588,98261.0,98242.0,0.06747341]
[1732323747569,0.0017202,98262.0,98243.0,0.04851779]
[1732323748474,0.0017202,98262.0,98244.0,0.023]
[1732323748695,0.0017202,98262.0,98246.0,0.0475]
[1732323748897,0.0017202,98262.0,98248.0,0.0475]
[1732323749168,0.0017202,98262.0,98249.0,0.00101769]
[1732323749845,0.08037932,98269.0,98249.0,0.00101769]
[1732323750543,0.07229997,98269.0,98249.0,0.00101769]
[1732323750768,0.06885606,98269.0,98249.0,0.00101769]
[1732323751457,0.06142042,98269.0,98249.0,0.00101769]
[1732323751677,0.0017202,98276.0,98250.0,0.0475]
[1732323751901,0.0017202,98276.0,98251.0,0.07611769]
[1732323752117,0.01486447,98275.0,98251.0,0.07611769]
[1732323752329,0.01486447,98274.0,98251.0,0.07611769]
[1732323753645,0.03293588,98267.0,98251.0,0.0751]
[1732323753873,0.01115031,98267.0,98251.0,0.0751]
[1732323754090,0.01115031,98273.0,98251.0,0.0751]
[1732323754315,0.01115031,98267.0,98250.0,0.0475]
[1732323754552,0.1282,98266.0,98244.0,0.0475]
[1732323754766,0.14306447,98266.0,98244.0,0.1975]
[1732323754997,0.01486447,98261.0,98244.0,0.0475]
[1732323755217,0.01486447,98261.0,98244.0,0.08932646]
[1732323756915,0.01486447,98261.0,98249.0,0.00086]
[1732323759936,0.00492954,98261.0,98249.0,0.00086]
[1732323760169,0.12379801,98266.0,98249.0,0.00086]
[1732323762446,0.11926917,98266.0,98249.0,0.00086]
[1732323763842,0.11926917,98266.0,98249.0,0.04196958]
[1732323764101,0.11926917,98266.0,98249.0,0.00086]
[1732323764982,0.01115031,98265.0,98249.0,0.00086]
[1732323765201,0.00172,98269.0,98249.0,0.00086]
[1732323765202,0.06105031,98262.0,98249.0,0.00086]
[1732323765421,0.0499,98258.0,98249.0,0.00086]
[1732323765639,0.0825,98257.0,98249.0,0.00086]
[1732323767769,0.08240215,98257.0,98249.0,0.00086]
[1732323769710,0.08240215,98257.0,98225.0,0.0478]
[1732323769711,0.08240215,98257.0,98217.0,0.05063734]
[1732323769921,0.08240215,98257.0,98224.0,0.04121391]
[1732323770160,0.08240215,98257.0,98225.0,0.00101792]
[1732323770590,0.08240215,98257.0,98219.0,0.00101792]
[1732323771031,0.08240215,98257.0,98218.0,0.023]
[1732323771473,0.08240215,98257.0,98219.0,0.00101789]
[1732323771726,0.0825,98255.0,98219.0,0.00101789]
[1732323771959,0.01115031,98259.0,98219.0,0.00101789]
[1732323771960,0.0825,98253.0,98219.0,0.00101789]
[1732323772180,0.0825,98253.0,98218.0,0.00101794]
[1732323772400,0.0825,98251.0,98218.0,0.00101794]
[1732323772627,0.0825,98245.0,98198.0,0.05068327]
[1732323772876,0.0825,98239.0,98200.0,0.0503317]
[1732323773090,0.00101794,98238.0,98201.0,0.0478]
[1732323773538,0.1324,98237.0,98201.0,0.0478]
[1732323773772,0.00101794,98236.0,98201.0,0.0478]
[1732323773960,0.13001681,98237.0,98201.0,0.0478]
[1732323774247,0.01534238,98230.0,98201.0,0.0478]
[1732323774467,0.010186,98230.0,98202.0,0.00101801]
[1732323775147,0.00524881,98230.0,98202.0,0.00101801]
[1732323775582,0.00191424,98230.0,98203.0,0.02621028]
[1732323775808,0.00191424,98230.0,98204.0,0.00101811]
[1732323776664,0.00191424,98230.0,98202.0,0.00101811]
[1732323777059,0.0788,98229.0,98202.0,0.00101811]
[1732323779329,0.0474,98228.0,98202.0,0.02401811]
[1732323779539,0.1262,98228.0,98203.0,0.00101811]
[1732323779753,0.1262,98228.0,98203.0,0.02]
[1732323779960,0.1262,98228.0,98203.0,0.00101811]
[1732323780183,0.1262,98228.0,98202.0,0.00101811]
[1732323780394,0.1262,98228.0,98203.0,0.00101811]
[1732323780641,0.1262,98228.0,98202.0,0.00101811]
[1732323780857,0.1262,98228.0,98201.0,0.0478]
[1732323781532,0.1262,98228.0,98202.0,0.0008605]
[1732323781995,0.00191424,98222.0,98203.0,0.00101811]
[1732323782211,0.1262,98221.0,98178.0,0.02401819]
[1732323783084,0.1262,98221.0,98180.0,0.023]
[1732323783296,0.1262,98221.0,98184.0,0.05047804]
[1732323783514,0.08985182,98221.0,98186.0,0.023]
[1732323783725,0.08706776,98221.0,98189.0,0.0473]
[1732323783943,0.08706776,98221.0,98190.0,0.02401819]
[1732323785020,0.08706776,98221.0,98192.0,0.023]
[1732323785233,0.08706776,98221.0,98193.0,0.00101819]
[1732323785450,0.08706776,98221.0,98192.0,0.023]
[1732323785663,0.0788,98221.0,98197.0,0.023]
[1732323785880,0.0788,98221.0,98198.0,0.00101811]
[1732323786102,0.0788,98221.0,98199.0,0.00101811]
[1732323786325,0.0788,98221.0,98197.0,0.023]
[1732323786326,0.0788,98221.0,98198.0,0.00101811]
[1732323787959,0.02769681,98221.0,98198.0,0.00101811]
[1732323788425,0.01585681,98221.0,98198.0,0.00101811]
[1732323788687,1e-08,98221.0,98200.0,0.023]
[1732323788926,1e-08,98221.0,98201.0,0.00101811]
[1732323790591,1e-08,98221.0,98202.0,0.02621028]
[1732323790814,1e-08,98221.0,98203.0,0.00101811]
[1732323793836,1e-08,98221.0,98204.0,0.00101811]
[1732323794065,1e-08,98221.0,98201.0,0.00101811]
[1732323795027,0.07477873,98224.0,98201.0,0.00101811]
[1732323795263,0.00237873,98224.0,98201.0,0.00101811]
[1732323797105,0.00037873,98224.0,98201.0,0.00101811]
[1732323798301,0.02603873,98225.0,98201.0,0.00101811]
[1732323798983,0.02174241,98225.0,98201.0,0.00101811]
[1732323799205,0.00191424,98230.0,98201.0,0.00101811]
[1732323799925,0.00191424,98230.0,98220.0,0.50640612]
[1732323801315,0.0795,98229.0,98220.0,0.50640612]
[1732323802018,0.0463,98228.0,98220.0,0.50640612]
[1732323802540,0.04193902,98228.0,98220.0,0.50640612]
[1732323809154,0.1,98238.0,98221.0,0.0487]
[1732323812587,0.0801256,98240.0,98221.0,0.0487]
[1732323813470,0.0801256,98240.0,98221.0,0.1987]
[1732323814181,0.0006256,98240.0,98223.0,0.0792]
[1732323814405,0.0006256,98240.0,98223.0,0.08021798]
[1732323818088,0.0006256,98240.0,98221.0,0.08927833]
[1732323818523,0.0484,98239.0,98221.0,0.09013893]
[1732323820232,0.0484,98239.0,98222.0,0.00101798]
[1732323821433,0.0484,98239.0,98221.0,0.09013893]
[1732323822358,0.0484,98239.0,98222.0,0.00101798]
[1732323823286,0.07004209,98243.0,98222.0,0.00101798]
[1732323823741,0.07000948,98242.0,98190.0,0.05017695]
[1732323823972,0.07000948,98242.0,98191.0,0.02752892]
[1732323824673,0.05580287,98242.0,98195.0,0.00110891]
[1732323824909,0.0822,98236.0,98195.0,0.00110891]
[1732323825140,0.0822,98236.0,98196.0,0.00101803]
[1732323825598,0.0822,98236.0,98197.0,0.02530756]
[1732323825963,0.0822,98236.0,98198.0,0.00101803]
[1732323826753,0.0822,98236.0,98200.0,0.0489]
[1732323826989,0.0822,98236.0,98202.0,0.0489]
[1732323827218,0.0822,98236.0,98203.0,0.00101803]
[1732323827436,0.0822,98236.0,98204.0,0.0489]
[1732323827659,0.0822,98236.0,98205.0,0.00101803]
[1732323828107,0.07122798,98236.0,98205.0,0.00101803]
[1732323829022,0.07122798,98236.0,98205.0,0.04304082]
[1732323829466,0.07122798,98236.0,98205.0,0.00101803]
[1732323830408,0.07122798,98236.0,98204.0,0.0489]
[1732323830641,0.07122798,98236.0,98205.0,0.00101803]
[1732323830875,0.07122798,98236.0,98206.0,0.0489]
[1732323831125,0.07122798,98236.0,98207.0,0.00101803]
[1732323831772,0.07294918,98236.0,98207.0,0.00101803]
[1732323833692,0.05580287,98230.0,98206.0,0.0489]
[1732323833936,0.05580287,98230.0,98207.0,0.00101803]
[1732323833937,0.1309,98229.0,98207.0,0.00101803]
[1732323834150,0.1309,98214.0,98204.0,0.0008606]
[1732323838601,0.1312,98207.0,98204.0,0.0008606]
[1732323838846,0.0813,98206.0,98204.0,0.0008606]
[1732323839072,0.0611,98206.0,98204.0,0.0008606]
[1732323841356,0.0518849,98206.0,98204.0,0.0008606]
[1732323842523,0.04265968,98206.0,98204.0,0.0008606]
[1732323843019,0.05580287,98186.0,98152.0,0.67186553]
[1732323843243,0.12584496,98172.0,98171.0,0.0008609]
[1732323843463,0.11151226,98172.0,98171.0,0.0008609]
[1732323843696,0.07331551,98172.0,98171.0,0.0008609]
[1732323843935,0.023,98185.0,98171.0,0.0049199]
[1732323845075,0.023,98185.0,98171.0,0.0008609]
[1732323845813,0.023,98183.0,98171.0,0.0008609]
[1732323845816,0.023,98181.0,98171.0,0.0008609]
[1732323846042,0.03461875,98186.0,98171.0,0.0008609]
[1732323849015,0.0813,98185.0,98171.0,0.0008609]
[1732323851103,0.023,98184.0,98171.0,0.0008609]
[1732323854681,0.05596016,98185.0,98171.0,0.0008609]
[1732323861675,0.05596016,98185.0,98171.0,0.0013025]
[1732323867659,0.05768236,98185.0,98171.0,0.0013025]
[1732323868558,0.0464,98184.0,98171.0,0.0013025]
[1732323868894,0.0755,98183.0,98171.0,0.0013025]
[1732323869355,0.1,98180.0,98171.0,0.0013025]
[1732323869803,0.1,98181.0,98171.0,0.0013025]
[1732323870235,0.0464,98184.0,98171.0,0.0013025]
[1732323870236,0.1,98180.0,98171.0,0.0013025]
[1732323870425,0.0755,98179.0,98171.0,0.0013025]
[1732323874234,0.0017222,98185.0,98171.0,0.0013025]
[1732323876692,0.00042427,98185.0,98171.0,0.0013025]
[1732323878396,0.00042427,98185.0,98156.0,0.04789212]
[1732323880213,0.00042427,98185.0,98171.0,0.0008611]
[1732323880750,0.00032241,98185.0,98184.0,0.15]
[1732323880990,0.00032241,98185.0,98171.0,0.0008611]
[1732323881215,0.00032241,98185.0,98144.0,0.00014429]
[1732323881216,0.04475761,98161.0,98144.0,0.00014429]
[1732323881447,0.00466041,98185.0,98145.0,0.0494]
[1732323884304,0.00466041,98185.0,98146.0,0.0783]
[1732323884747,0.00466041,98185.0,98149.0,0.0494]
[1732323884991,0.00466041,98185.0,98150.0,0.0783]
[1732323885227,0.00466041,98185.0,98152.0,0.0494]
[1732323886143,0.1273,98184.0,98152.0,0.0494]
[1732323886634,0.1273,98184.0,98152.0,0.1994]
[1732323886862,0.131638,98184.0,98152.0,0.1994]
[1732323888195,0.084938,98184.0,98152.0,0.1994]
[1732323891731,0.084938,98184.0,98152.0,0.2002611]
[1732323891949,0.084938,98184.0,98153.0,0.62155116]
[1732323892862,0.084938,98184.0,98157.0,0.62155116]
[1732323893576,0.084938,98184.0,98162.0,0.62155116]
[1732323893813,0.084938,98184.0,98163.0,0.62155116]
[1732323894026,0.084938,98184.0,98164.0,0.0494]
[1732323894513,0.004338,98184.0,98165.0,0.0783]
[1732323894757,0.004338,98184.0,98168.0,0.62155116]
[1732323894986,0.004338,98184.0,98169.0,0.15]
[1732323895237,0.004338,98184.0,98169.0,0.77155116]
[1732323895475,0.004338,98184.0,98172.0,0.62155116]
[1732323895715,0.004338,98184.0,98174.0,0.62155116]
[1732323896458,0.004338,98184.0,98176.0,0.62155116]
[1732323896684,0.004338,98184.0,98175.0,0.62155116]
[1732323896872,0.004338,98184.0,98176.0,0.62155116]
[1732323897357,0.004338,98184.0,98176.0,0.15]
[1732323898025,0.004338,98184.0,98176.0,0.77155116]
[1732323898476,0.004338,98184.0,98176.0,0.15]
[1732323899659,0.004338,98184.0,98165.0,0.0783]
[1732323899660,0.004338,98184.0,98174.0,0.62155116]
[1732323900101,0.004338,98184.0,98175.0,0.15]
[1732323900347,0.004338,98184.0,98172.0,0.62155116]
[1732323900575,0.004338,98184.0,98174.0,0.15]
[1732323901015,0.004338,98184.0,98173.0,0.15]
[1732323901450,0.004338,98184.0,98173.0,0.77155116]
[1732323901667,0.004338,98184.0,98174.0,0.62155116]
[1732323902129,0.004338,98184.0,98173.0,0.77155116]
[1732323902355,0.004338,98184.0,98174.0,0.62155116]
[1732323902798,0.004338,98184.0,98175.0,0.15]
[1732323903990,0.004338,98184.0,98173.0,0.62155116]
[1732323904255,0.0060606,98184.0,98173.0,0.62155116]
[1732323905096,0.0060606,98184.0,98172.0,0.62155116]
[1732323905320,0.0060606,98184.0,98171.0,0.62155116]
[1732323905545,0.0060606,98184.0,98173.0,0.62155116]
[1732323905992,0.0060606,98184.0,98172.0,0.62155116]
[1732323906222,0.0060606,98184.0,98173.0,0.15]
[1732323906432,0.0060606,98184.0,98175.0,0.62155116]
[1732323906663,0.0060606,98184.0,98176.0,0.15]
[1732323907185,0.00032241,98185.0,98177.0,0.1213]
[1732323907422,0.00032241,98185.0,98178.0,0.15]
[1732323907638,0.00032241,98185.0,98179.0,0.0461]
[1732323907856,0.0041412,98196.0,98178.0,0.15]
[1732323907857,0.0041412,98196.0,98182.0,0.0461]
[1732323908074,0.0041412,98196.0,98187.0,0.62724661]
[1732323908544,0.0041412,98196.0,98188.0,0.62724661]
[1732323908775,0.0041412,98196.0,98185.0,0.62724661]
[1732323909674,0.0041412,98196.0,98185.0,0.15]
[1732323910763,0.0041412,98196.0,98183.0,0.62724661]
[1732323911012,0.0041412,98196.0,98182.0,0.67334661]
[1732323911247,0.0041412,98196.0,98183.0,0.15]
[1732323911715,0.0041412,98196.0,98182.0,0.67334661]
[1732323911716,0.0041412,98196.0,98182.0,0.1961]
[1732323911947,0.0041412,98196.0,98183.0,0.62724661]
[1732323912183,0.0041412,98196.0,98184.0,0.15]
[1732323913284,0.0041412,98196.0,98182.0,0.0461]
[1732323913712,0.0041412,98196.0,98182.0,0.1961]
[1732323914355,0.0041412,98196.0,98182.0,0.82334661]
[1732323914575,0.0041412,98196.0,98182.0,0.1961]
[1732323914876,0.0041412,98196.0,98183.0,0.0461]
[1732323915101,0.0041412,98196.0,98183.0,0.0752]
[1732323915319,0.0041412,98196.0,98184.0,0.0491]
[1732323915320,0.00082284,98196.0,98184.0,0.0491]
[1732323915539,0.00082284,98196.0,98184.0,0.05011841]
[1732323915760,0.00082284,98196.0,98185.0,0.0818]
[1732323915981,0.00082284,98196.0,98185.0,0.07684]
[1732323916214,0.00082284,98196.0,98186.0,0.00101838]
[1732323916435,0.00082284,98196.0,98185.0,0.07684]
[1732323916656,0.00254544,98196.0,98185.0,0.07684]
[1732323917742,0.00254544,98196.0,98186.0,0.00572033]
[1732323918641,0.00254544,98196.0,98186.0,0.004702]
[1732323920686,0.00254544,98196.0,98164.0,0.0008613]
[1732323920687,0.05855154,98196.0,98179.0,0.0818]
[1732323920902,0.0560061,98193.0,98151.0,0.0818]
[1732323921119,0.00101844,98192.0,98187.0,0.004058]
[1732323925737,0.00101844,98192.0,98187.0,0.03640743]
[1732323926158,0.00101844,98192.0,98187.0,0.004058]
[1732323927734,0.0560061,98188.0,98187.0,0.004058]
[1732323928823,0.05702454,98188.0,98187.0,0.004058]
[1732323929496,0.28302454,98188.0,98187.0,0.004058]
[1732323929713,0.2820061,98188.0,98187.0,0.004058]
[1732323933131,0.0560061,98173.0,98153.0,0.0809]
[1732323933370,0.05702454,98187.0,98164.0,0.0809]
[1732323933600,0.05702454,98187.0,98165.0,0.00101852]
[1732323933810,0.15702454,98187.0,98166.0,0.00101852]
[1732323934042,0.05702454,98187.0,98165.0,0.00101852]
[1732323934264,0.05702454,98187.0,98166.0,0.0489]
[1732323934511,0.10101844,98195.0,98167.0,0.08191852]
[1732323934742,0.15702454,98194.0,98167.0,0.08191852]
[1732323935184,0.05702454,98194.0,98167.0,0.23191852]
[1732323935403,0.1,98186.0,98167.0,0.23191852]
[1732323935629,0.1,98185.0,98167.0,0.23191852]
[1732323936071,0.1560061,98187.0,98167.0,0.23191852]
[1732323936287,0.00101844,98186.0,98167.0,0.23191852]
[1732323936506,0.1,98185.0,98167.0,0.2309]
[1732323936956,0.08709902,98185.0,98167.0,0.2309]
[1732323937184,0.08709902,98185.0,98167.0,0.264295]
[1732323938615,0.05702454,98184.0,98167.0,0.264295]
[1732323940472,0.22342356,98184.0,98167.0,0.033395]
[1732323940968,0.22342356,98184.0,98166.0,0.0008607]
[1732323941439,0.0560061,98182.0,98166.0,0.0008607]
[1732323941685,0.00101844,98181.0,98166.0,0.0008607]
[1732323941900,0.05581595,98192.0,98168.0,0.15]
[1732323942136,0.05581595,98190.0,98169.0,0.00101852]
[1732323942354,0.05581595,98191.0,98170.0,0.00101852]
[1732323942591,0.05581595,98191.0,98169.0,0.00101852]
[1732323942825,0.05581595,98190.0,98169.0,0.00101852]
[1732323943319,0.08709902,98191.0,98169.0,0.00101852]
[1732323943320,0.05581595,98187.0,98169.0,0.00101852]
[1732323943554,0.14291497,98191.0,98169.0,0.00101852]
[1732323943791,0.05581595,98187.0,98169.0,0.00101852]
[1732323944492,0.05581595,98190.0,98169.0,0.00101852]
[1732323944953,0.05581595,98192.0,98169.0,0.00101852]
[1732323945407,0.08709902,98194.0,98169.0,0.00101852]